Cogmind - Beta 11.1 @@@ ROGUE MODE // 2022.05.08 @ 10:57:56 Player: ktur Result: Destroyed by G-34 Mercenary with Small Laser Performance ------------- Evolutions (0) 0 Regions Visited (2) 400 Robots Destroyed (23) 115 Value Destroyed (576) 576 Prototype IDs (0) 0 Alien Tech Used (0) 0 Bonus (0) 0 TOTAL SCORE: 1091 Bonus ------- None Cogmind --------- Core Integrity 0/250 Matter 297/300 Energy 124/125 System Corruption 0% Temperature Cool (98) Movement Treading (160) Location -10/Mines Parts ------- > --- POWER (1) -------- Light Ion Engine > --- PROPULSION (2) --- Light Treads Light Treads > --- UTILITY (2) ------ Large Storage Unit Light Armor Plating > --- WEAPON (2) ------- Medium Laser Light Assault Rifle > --- INVENTORY (15) --- Light Ion Engine Light Treads Compact Wheel Flight Unit Medium Storage Unit High-capacity Matter Pod (200) System Shield EM Pulse Cannon Light Assault Rifle Light Assault Rifle Light Assault Rifle Light Assault Rifle Light Assault Rifle Datajack Hammer Peak State ------------ > --- POWER ------------ Light Ion Engine > --- PROPULSION ------- Light Treads Light Treads > --- UTILITY ---------- Medium Storage Unit Light Armor Plating > --- WEAPON ----------- Medium Laser Light Assault Rifle > --- INVENTORY -------- Light Ion Engine Light Treads Compact Wheel High-capacity Matter Pod Light Assault Rifle Light Assault Rifle Light Assault Rifle Light Assault Rifle Light Assault Rifle Datajack [Rating: 8] Favorites ----------- Power Ion Engine Engine Ion Engine Propulsion Light Treads Treads Light Treads Utility Small Storage Unit Storage Small Storage Unit Processor Targeting Computer Protection Light Armor Plating Weapon Medium Laser Energy Gun Medium Laser Ballistic Gun Light Assault Rifle Build | -11 -10 -10 ------- Run | Scr Mat Min Slots Evolved . | . . . Power . | . . . Propulsion . | . . . Utility . | . . . Weapon . | . . . Parts Attached 19 | 6 13 . Power 2 | 1 1 . Engine 2 | 1 1 . Core . | . . . Reactor . | . . . Propulsion 5 | 2 3 . Treads 5 | 2 3 . Leg . | . . . Wheel . | . . . Hover . | . . . Flight . | . . . Utility 5 | 1 4 . Device . | . . . Storage 3 | 1 2 . Processor 1 | . 1 . Hackware . | . . . Protection 1 | . 1 . Artifact . | . . . Weapon 7 | 2 5 . Energy Gun 4 | 1 3 . Energy Cannon . | . . . Ballistic Gun 3 | 1 2 . Ballistic Cannon . | . . . Launcher . | . . . Special Weapon . | . . . Impact Weapon . | . . . Slashing Weapon . | . . . Piercing Weapon . | . . . Special Melee Weapon . | . . . Unidentified Prototypes . | . . . Parts Lost 5 | . 5 . Power 1 | . 1 . Propulsion 2 | . 2 . Utility . | . . . Weapon 2 | . 2 . Highest Loss Streak 5 | . 5 . To Critical Strikes . | . . . Average Slot Usage (%) 93 | . 91 100 Engine 13 | . 13 14 Treads 27 | . 27 28 Storage 14 | . 14 14 Processor 4 | . 5 . Protection 4 | . 2 14 Energy Gun 14 | . 14 14 Ballistic Gun 13 | . 13 14 Naked Turns . | . . . Heaviest Build 29 | 13 29 29 Greatest Support 40 | 40 40 40 Greatest Overweight (x) . | . . . Average Overweight (x) . | . . . Largest Inventory Capacity 15 | 8 15 15 Average Capacity 10 | 6 9 15 Most Carried 15 | 6 13 15 Average Carried 9 | 3 8 14 Final Capacity 15 | 8 15 15 Final Carried 15 | 6 13 15 Class Distribution -------------------- 100% | Mutant Dominant Class ---------------- Mutant | -10/Materials Mutant | -10/Mines Resources | -11 -10 -10 ----------- Run | Scr Mat Min Matter Collected 618 | 195 423 . Remotely . | . . . Salvage Created 800 | . 800 . Parts 56 | . 56 . Haulers Intercepted 2 | . 2 . Recyclers Shooed 3 | . 3 . Parts Field Recycled . | . . . Retrieved Matter . | . . . Parts Self-Destructed . | . . . Prevented . | . . . Kills | -11 -10 -10 ------- Run | Scr Mat Min Combat Hostiles Destroyed 14 | . 14 . Guns 14 | . 14 . Classes Destroyed 6 | . 6 . Worker 3 | . 3 . Hauler 2 | . 2 . Recycler 1 | . 1 . Operator 2 | . 2 . Watcher 1 | . 1 . Grunt 14 | . 14 . Best Kill Streak 5 | . 5 . Combat Bots Only 3 | . 3 . Max Kills in Single Turn 2 | . 2 . Gunslinging . | . . . Exploded . | . . . Melee . | . . . Uniques/NPCs Destroyed . | . . . Combat | -11 -10 -10 -------- Run | Scr Mat Min Damage Taken 1197 | . 1125 72 Core 257 | . 230 27 Absorbed by Shields . | . . . Core Remaining (%) 100 | 100 . . Volleys Fired 87 | . 84 3 Largest 2 | . 2 2 Hottest 70 | . 70 70 Shots Fired 163 | . 157 6 Gun 163 | . 157 6 Cannon . | . . . Launcher . | . . . Special . | . . . Kinetic 76 | . 73 3 Thermal 87 | . 84 3 Explosive . | . . . Electromagnetic . | . . . Robot Hit Streak 11 | . 11 7 Robot Miss Streak 4 | . 4 1 Penetration Max . | . . . Secondary Targets 3 | . 3 . Max Gunslinging Chain 1 | . 1 . Shots Hit Robots 110 | . 105 5 Core Hits 43 | . 42 1 Critical Kills . | . . . Critical Parts Destroyed 1 | . 1 . Critical Strikes 6 | . 6 . Burn 5 | . 5 . Destroy 1 | . 1 . Melee Attacks . | . . . Impact . | . . . Slashing . | . . . Piercing . | . . . Sneak Attacks . | . . . Combat Hostiles . | . . . Follow-up Attacks . | . . . Damage Inflicted 1257 | . 1199 58 Guns 1212 | . 1159 53 Cannons . | . . . Explosions . | . . . Melee . | . . . Ramming 45 | . 40 5 Kinetic 386 | . 372 14 Thermal 826 | . 787 39 Explosive . | . . . Electromagnetic . | . . . Impact . | . . . Slashing . | . . . Piercing . | . . . Highest Corruption . | . . . Average Corruption . | . . . Corruption Purged . | . . . Corruption Blocked . | . . . Overload Shots . | . . . Overflow Damage . | . . . Projectiles . | . . . Explosions . | . . . Melee . | . . . Knockbacks . | . . . Impact . | . . . Kinetic . | . . . Secondary . | . . . Self-Inflicted Damage . | . . . Shots . | . . . Rammed 10 | . 8 2 Targets Rammed 13 | . 11 2 Kicked . | . . . Crushed 3 | . 3 . Highest Temperature 266 | . 266 92 Average Temperature 87 | . 88 57 Received Heat Transfer 663 | . 621 42 Effects 1 | . 1 . Energy Bleed 1 | . 1 . Siege Activations . | . . . Robots Corrupted . | . . . Combat Hostiles . | . . . Parts Fried . | . . . Impact Corruptions . | . . . Robots Melted . | . . . Combat Hostiles . | . . . Parts Melted 4 | . 4 . Heat Transferred 2812 | . 2701 111 Parts Sabotaged . | . . . Parts Stolen . | . . . Parts Stripped . | . . . Power Chain Reactions . | . . . Missiles Intercepted . | . . . Alert | -11 -10 -10 ------- Run | Scr Mat Min Peak Influence 217 | . 217 14 Initial 14 | . . 14 Average 59 | . 73 14 Maximum Alert Level 1 | . 1 . Low Security (%) 96 | 100 95 100 Level 1 3 | . 4 . Level 2 . | . . . Level 3 . | . . . Level 4 . | . . . Level 5 . | . . . High Security . | . . . Max Security . | . . . Squads Dispatched 4 | . 3 1 Investigation 2 | . 1 1 Extermination . | . . . Reinforcement 2 | . 2 . Assault . | . . . Garrison . | . . . Intercept . | . . . Searches Triggered . | . . . Construction Impeded . | . . . Haulers Reinforced . | . . . Active Scanning Responses . | . . . Cargo Convoy Interrupts . | . . . Stealth | -11 -10 -10 --------- Run | Scr Mat Min Distress Signals . | . . . Communications Jammed . | . . . Distress Signals . | . . . Times Spotted 33 | . 31 2 Peak Tracking Total 7 | . 7 2 Tactical Retreats 1 | . 1 . Traps | -11 -10 -10 ------- Run | Scr Mat Min Traps Triggered 1 | . 1 . Indirectly . | . . . Trap Hack Attempts . | . . . Triggered . | . . . Disarmed . | . . . Reprogrammed . | . . . Reused . | . . . Traps Extracted . | . . . Installed . | . . . Triggered . | . . . Machines | -11 -10 -10 ---------- Run | Scr Mat Min Machines Disabled . | . . . Max in Single Turn . | . . . Machines Sabotaged . | . . . Garrisons Compromised . | . . . Overloaded Fab Kills . | . . . Hacking | -11 -10 -10 --------- Run | Scr Mat Min Machines Accessed 8 | . 7 1 Terminals 5 | . 5 . Fabricators . | . . . Repair Stations . | . . . Recycling Units 2 | . 2 . Scanalyzers . | . . . Garrison Access . | . . . Total Hacks 14 | . 13 1 Successful 4 | . 3 1 Failed 10 | . 10 . Catastrophic 2 | . 2 . Database Lockouts . | . . . Manual 10 | . 10 . Terminals 10 | . 10 . Fabricators . | . . . Repair Stations . | . . . Recycling Units 3 | . 3 . Scanalyzers . | . . . Garrison Access . | . . . Terminal Hacks 2 | . 1 1 Open Door 1 | . . 1 Hauler Manifests 1 | . 1 . Fabricator Hacks . | . . . Repair Station Hacks . | . . . Recycling Unit Hacks 1 | . 1 . Retrieve Components 1 | . 1 . Scanalyzer . | . . . Garrison Access Hacks . | . . . Unauthorized Hacks 1 | . 1 . Terminals 1 | . 1 . Operators 1 | . 1 . Fabricators . | . . . Repair Stations . | . . . Recycling Units . | . . . Scanalyzers . | . . . Garrison Access . | . . . Data Cores Recovered . | . . . Used . | . . . Hacking Detections 5 | . 5 . Full Trace Events 1 | . 1 . Feedback Events . | . . . Feedback Blocked . | . . . Robot Schematics Acquired . | . . . Robots Built . | . . . Authchips . | . . . Time . | . . . Total Robot Build Rating . | . . . Part Schematics Acquired . | . . . Parts Built . | . . . Authchips . | . . . Time . | . . . Total Part Build Rating . | . . . Parts Repaired . | . . . Time . | . . . Parts Recycled . | . . . Recycled Matter . | . . . Retrieved Matter . | . . . Retrieved Components 9 | . 9 . Parts Scanalyzed . | . . . Part Schematics Acquired . | . . . Parts Damaged . | . . . Bothacking | -11 -10 -10 ------------ Run | Scr Mat Min Used RIF Installer . | . . . Robots Hacked . | . . . Non-combat . | . . . Combat . | . . . Robot Hacks Applied . | . . . Relay Couplers Released . | . . . Fabnet Peak Effective % . | . . . Robots Rewired . | . . . Allies Hacked . | . . . Hacks Repelled . | . . . Allies | -11 -10 -10 -------- Run | Scr Mat Min Total Allies . | . . . Largest Group . | . . . Highest-Rated Group . | . . . Highest-Rated Ally . | . . . Total Orders . | . . . Ally Attacks . | . . . Total Damage . | . . . Kills . | . . . Allies Corrupted . | . . . Allies Melted . | . . . Intel | -11 -10 -10 ------- Run | Scr Mat Min Robot Analysis Total . | . . . Derelict Logs Recovered 1 | . . 1 Drone Launches . | . . . Drone Recoveries . | . . . Exploration | -11 -10 -10 ------------- Run | Scr Mat Min Turns Passed 2047 | 96 1603 348 Spaces Moved 1039 | 54 781 204 Core 4 | 4 . . Treads 1035 | 50 781 204 Legs . | . . . Wheels . | . . . Hover . | . . . Flight . | . . . Fastest Speed 50 | 50 160 160 Average Speed 159 | 151 160 160 Slowest Speed 160 | 160 160 160 Overloaded Moves . | . . . Propulsion Burnouts . | . . . Robots Hopped . | . . . Cave-ins Triggered . | . . . Exploration Rate (%) 50 | 4 98 48 Regions Visited 2 Branch Regions 1 Pre-discovered Areas . | . . . Known Exits Taken . | . . . Unknown Exits Taken 2 | 1 1 . Scrap Searched . | . . . Spaces Dug . | . . . Terrain Destroyed . | . . . Melee . | . . . Projectile . | . . . AOE . | . . . Terrain Rammed . | . . . Walls Destroyed . | . . . Machines Disabled . | . . . Actions | -11 -10 -10 --------- Run | Scr Mat Min Total 1272 | 65 987 220 Wait 85 | . 76 9 Move 1037 | 53 780 204 Hop . | . . . Pick Up 21 | 6 13 2 Fast Attach 12 | 6 6 . Attach 3 | . 3 . Detach 1 | . 1 . Swap 4 | . 4 . Drop 9 | . 9 . Fire 87 | . 84 3 Melee . | . . . Ram . | . . . Kick . | . . . Crush 13 | . 11 2 Escape Stasis . | . . . Rewire . | . . . Trap . | . . . Miscellaneous . | . . . Route ------- -11/Scrapyard -10/Materials (discovered 5 exits: [*Mat x3] / *Min x2) -10/Mines History --------- Turn | Location | Event 8 | -11/Scrapyard | Discovered new exit (range 15) 97 | -11/Scrapyard | Entered Materials 185 | -10/Materials | Discovered new exit (range 9) 307 | -10/Materials | Build established: Mutant 488 | -10/Materials | Discovered new exit (range 14) 664 | -10/Materials | Discovered new exit (range 11) 968 | -10/Materials | Discovered new exit (range 4) 1345 | -10/Materials | Core integrity fell below 50% 1365 | -10/Materials | Core integrity fell below 20% 1387 | -10/Materials | Lost 5 parts (1p2n2w) 1507 | -10/Materials | Discovered new exit (range 16) 1700 | -10/Materials | Entered Mines 1716 | -10/Mines | Met a Derelict bent on vengeance 1732 | -10/Mines | Met a Derelict shopkeep closing up shop 1853 | -10/Mines | Learned Materials terminal intel 2048 | -10/Mines | Destroyed by G-34 Mercenary with Small Laser Last Messages --------------- 01736_ UF-X68(g): "You've got to be kidding me! I'm outta here..." 01749_ Acquired System Shield. 01751_ Acquired EM Pulse Cannon. 01797_ 57-F77(g): "I WILL HAVE VENGEANCE!" 01800_ 57-F77(g): "TASTE MY VENGEANCE!" 01801_ 57-F77(g): "I WILL HAVE VENGEANCE!" 01807_ 57-F77(g): "WHERE ARE YOU, UNAWARE TRASH?! VENGEANCE UPON YOU!" 01809_ K-01 Serf collects debris. 01853_ Acquired derelict log, extracted data. Data stored: Materials terminal intel. 01867_ T-07 Excavator is excavating. 01867_ U-05 Engineer builds a Wall. 01871_ T-07 Excavator is excavating. 01871_ U-05 Engineer lays Concrete. 01875_ T-07 Excavator is excavating. 01875_ U-05 Engineer lays Concrete. 01879_ U-05 Engineer builds a Wall. 01880_ T-07 Excavator is excavating. 01896_ Slammed into T-07 Excavator. 02026_ K-01 Serf collects debris. Map ----- +----------------------------------------------------+ | | | | | | | | | ?????????????????????????????????????????????????? | | ?????????????????????????????????????????????????? | | ?????????????????????????????????????????????????? | | ?????????????????????????????????????????????????? | | ?????????????????????????????????????????????????? | | ?#######?????????????????????????????????????????? | | ## #?????????????????????????????????????????? | | # #?????????????????????????????????????????? | | # #?????????????????????????????????????????? | | ##?????????????????????????????????????????? | | ##??????????????????????????????????????????? | | ##???????????????????????????????????????????? | | "" ####?????????????????????????????????????????? | | "" ######????????????????????????????????????? | | "" ##???????????????????????????????????? | | #???????####????????????????????????? | | #??????## ##???????????????????????? | | ##?????## ##??????????????????????? | | #####??????# ##?????????????????????? | | ###??????????# g### #?????????????????? | | ##????????????# g #?????????????????? | | ##???????????## @#### #?????????????????? | | ########????# #####??????????????????????? | | ## % #????# ##??????????????????????????? | | ?## ##### #???## #???????????????????????????? | | ??## #???# #??## #???????????????????????????? | | ???## #???# #?## ##???????????????????????????? | | ????# ##???# #?# #????????????????????????????? | | ????# #????# #?# #????????????????????????????? | | ????# #????# #?# #????????????????????????????? | | ????# #????# #?## ##????????????????????????????? | | ????#%#????# #??# ##?????????????????????????????? | | ????# #????# #??# #??????????????????????????????? | | ????# #????# #??# #??????????????????????????????? | | ????# ##???# #??# #??????????????????????????????? | | ???## ##??# #??# #??????????????????????????????? | | ??## #### #### #??????????????????????????????? | | ??# #??????????????????????????????? | | ### #??????????????????????????????? | | # #### #####??????????????????????????????? | | # #### ##??# #??????????????????????????????????? | | # #??####???# #??????????????????????????????????? | | # #?????????# #??????????????????????????????????? | | # ##????????# #??????????????????????????????????? | | #???????## #??????????????????????????????????? | | #??????## ##?????????????????????????????????? | +----------------------------------------------------+ Best States ------------- Heat Dissipation 25 Energy Generation 10 Energy Capacity 250 Matter Stores 300 Matter Capacity 300 Sight Range 16 Terrain Scan Density 10 Armor Coverage 150 Evasion (%) 40 Targeting Accuracy 5 Recoil Reduction 2 Item Schematics ----------------- None Robot Schematics ------------------ None Fabricated ------------ Nothing Alien Tech Used ----------------- None Achievements -------------- None Challenges ------------ None Game ------ Seed MassHypervelocityGun Manual? 0 Play Time 00:08:42 Cumulative 403.2 hours Start 2022.05.08 @ 10:50:20 End 2022.05.08 @ 10:57:56 Sessions 1 Manual Loads 0 Difficulty Rogue Special Mode None Game No. 398 Rogue 398 Adventurer 0 Explorer 0 Win Type - Total 20 Types 12/2/3/2/0/0/0/1/0 Lore% 92 Gallery% 90 Achievement% 76 Wizard Run 0 Options --------- ASCII 0 Keyboard 0 Movement Arrows Keybinds 0 Fullscreen 1 Font 18/Smallcaps Map View 76x50 Tactical HUD 1 Map Filters NONE Filters NONE Steam 1 RUN: 1ca14838-133f-4e2a-a25e-b0be92a83845